Workbook

Sheet SNPs
A1: SNP Category | H1: Designed and/or mainly analyzed by | I1: Final number | J1: Final number with duplicates | K1: Final number on the chip (checked on 2020/07/29) | L1: The name of the marker contains
A3: SNPs with different MAF profiles | H3: Badr Benjelloun, Rachel Rupp, Curt Van Tassell | I3: 1487 | J3: =I3 -> 1487 | K3: 1393 | L3: Random
A4: SNPs chosen in breeds not represented in the discovery dataset | H4: Gwenola Tosser, Curt Van Tassell | I4: 992 | J4: =I4 -> 992 | K4: 945 | L4: AF-PAKI
A5: SNPs to be able to join with GBS data + fill remaining gaps (determined after mapping the SNPs on ARS1 assembly) | H5: Rudiger Brauning, Shannon Clarke, Ken Dodds | I5: 858 | J5: =I5 -> 858 | K5: 1938 | L5: GOATD01
A6: GBS markers from AgResearch | H6: Rudiger Brauning, Shannon Clarke, Ken Dodds | I6: 612 | J6: =I6*2 -> 1224
A7: mitochondrial markers | H7: Licia Colli, Paola Crepaldi, Barbara Lazzari, Alessandra Stella | I7: 183 | J7: =I7*2 -> 366 | K7: 331 | L7: mtdna
A8: SNPs in specific regions/genes
B9: PRP | H9: Marcel Amills, Philippe Bardou, Rudiger Brauning, Cord Drögmüller, Isabelle Palhière, Alessandra Stella, Gwenola Tosser, Stephen White | I9: =25-9+144 -> 160 | J9: =I9*2 -> 320 | K9: 272 | L9: PRP
B10: Caseins-Lucie | H10: Lucie Genestout | I10: 19 | J10: 38 | K10: 34 | L10: CSN1S1 (but not snp)
B11: Caseins (QTL) | H11: Estelle Talouarn | I11: 20 | J11: 40 | K11: 39 | L11: QTLcaseins
B12: DGAT1 | H12: Gwenola Tosser | I12: 2 | J12: 4 | K12: 4 | L12: DGAT1
B13: UniBern (wattles, caseins, PRNP, DGAT1) | H13: Cord Drögmüller | I13: 29 | J13: 58 | K13: 60 | L13: UniBern
B14: miRNA | H14: Céline Bourdon | I14: 34 | J14: 68 | K14: 60 | L14: miRNA
B15: PIS | H15: Aurelien Capitan | I15: 2 | J15: 4 | K15: 4 | L15: PIS
B16: PITX2 | H16: Cord Drögmüller | I16: 3 | J16: 6 | K16: 0
B17: QTLs (without caseins) | H17: Estelle Talouarn | I17: 185 | J17: 370 | K17: =384-39 -> 345 | L17: QTL (but not QTLcaseins)
B18: High and low recombination areas | H18: Rachel Rupp | I18: 414 | J18: =I18 -> 414 | K18: 386 | L18: RH-map
A19: Y markers | J19: =I19 -> 0
B20: already selected by Hans Lenstra | H20: Hans Lenstra | I20: 35 | J20: =I20*2 -> 70 | K20: 67 | L20: chr-Y-toconfirm
B21: evenly spaced on Y contigs | H21: Ben Rosen | I21: 74 | J21: =I21*2 -> 148 | K21: 134 | L21: NW_017189618.1_ or NW_017189685.1_ or NW_017189696.1_ or NW_017189885.1_ or NW_017189985.1_ or NW_017190154.1_ or NW_017190040.1_ or NW_017189628.1_ or NW_017189610.1_ or NW_017195709.1_ or NW_017189563.1_
A23: Total AddOn IGGC | I23: =SUM(I2:I21) -> 5109 | J23: =SUM(J2:J21) -> 6467 | K23: =SUM(K2:K21) -> 6012
A25: Punlic (rs…) | H25: Illumina | J25: 30 | K25: 29 | L25: ch-rs
A26: Illumina | H26: Illumina | J26: 339 | K26: 339 | L26: ilmnseq
A27: v1 | H27: Philippe Bardou, Isabelle Palhière | J27: 53347 | K27: 53347 | L27: snp
A29: Total-v2 | K29: =K23+K25+K26+K27 -> 59727
